bitfinex-derivatives/quotes_SOLF0:USTF0_20260315
["timestamp","ask_amount","ask_price","bid_price","bid_amount"]
[1773578696703,17.23680435,88.231,88.146,10.208]
[1773578697004,17.23680435,88.23,88.146,10.208]
[1773578697204,8.79457909,88.229,88.146,10.208]
[1773578697408,8.79457909,88.228,88.146,10.208]
[1773578697604,10.202,88.204,88.156,10.207]
[1773578697906,10.202,88.204,88.157,6.16097393]
[1773578699297,8.79457909,88.228,88.157,6.16097393]
[1773578699502,8.79457909,88.227,88.157,6.16097393]
[1773578699796,10.51534832,88.242,88.157,6.16097393]
[1773578699797,8.79457909,88.226,88.157,6.16097393]
[1773578700108,8.79457909,88.225,88.157,6.16097393]
[1773578700304,8.79457909,88.224,88.157,6.16097393]
[1773578700506,10.201,88.206,88.157,6.16097393]
[1773578700701,17.22983548,88.232,88.157,6.16097393]
[1773578700904,20.394,88.246,88.157,6.16097393]
[1773578700905,8.78761022,88.231,88.157,6.16097393]
[1773578701205,10.201,88.208,88.157,6.16097393]
[1773578702002,10.2,88.217,88.159,6.15085886]
[1773578702297,8.78761022,88.243,88.159,6.15085886]
[1773578702497,8.78761022,88.242,88.159,27.31115591]
[1773578702704,8.44222526,88.249,88.16,6.15085886]
[1773578702906,10.199,88.223,88.178,6.15085886]
[1773578703606,10.51534832,88.24,88.149,6.14934913]
[1773578703809,17.22983548,88.239,88.149,6.14934913]
[1773578704006,17.22983548,88.238,88.149,6.14934913]
[1773578704203,10.2,88.214,88.151,6.21516068]
[1773578704400,19.30295854,88.249,88.151,6.21516068]
[1773578704401,8.44222526,88.248,88.151,6.21516068]
[1773578704600,8.44222526,88.247,88.151,6.21516068]
[1773578704801,8.44222526,88.249,88.167,6.21516068]
[1773578705107,16.80289582,88.264,88.167,6.21516068]
[1773578705298,16.80289582,88.263,88.186,6.12734514]
[1773578705501,8.44222526,88.262,88.186,6.12734514]
[1773578705699,8.44222526,88.276,88.186,6.12734514]
[1773578705902,8.44222526,88.275,88.186,6.12734514]
[1773578706103,35.66,88.277,88.21,6.07462959]
[1773578707305,8.65068823,88.296,88.21,6.07462959]
[1773578707608,10.192,88.285,88.225,6.08014507]
[1773578708508,10.192,88.285,88.227,6.01823203]
[1773578713716,10.192,88.285,88.229,5.99036425]
[1773578713915,10.193,88.276,88.229,5.99036425]
[1773578717221,10.192,88.286,88.229,5.99036425]
[1773578717514,35.66,88.295,88.229,5.99036425]
[1773578718515,10.192,88.285,88.229,5.99036425]
[1773578718713,35.66,88.295,88.229,5.99036425]
[1773578719622,10.193,88.276,88.229,5.99036425]
[1773578721424,10.194,88.268,88.229,5.99036425]
[1773578721722,10.194,88.268,88.21,6.00732628]
[1773578722319,35.66,88.295,88.21,6.00732628]
[1773578722520,35.66,88.295,88.149,6.00716909]
[1773578723627,10.197,88.244,88.191,6.01235322]
[1773578727729,10.198,88.236,88.191,6.01235322]
[1773578733345,10.199,88.228,88.191,6.01235322]
[1773578733940,10.199,88.228,88.18,16.2385165]
[1773578734140,10.199,88.228,88.181,6.0345165]
[1773578761264,16.87981172,88.274,88.183,6.03201373]
[1773578761459,16.91515128,88.294,88.185,27.05266043]
[1773578761661,8.56927254,88.294,88.194,6.03201373]
[1773578761957,10.192,88.284,88.218,6.03201373]
[1773578762565,10.191,88.293,88.23,6.03141998]
[1773578763664,10.191,88.293,88.233,6.0805002]
[1773578763861,8.61429842,88.294,88.222,6.0805002]
[1773578764262,35.66,88.295,88.222,6.0805002]
[1773578765762,35.66,88.295,88.21,6.06394135]
[1773578766264,8.61429842,88.294,88.21,6.06394135]
[1773578766660,10.194,88.268,88.21,6.06394135]
[1773578772366,16.96256344,88.294,88.21,6.06394135]
[1773578772867,8.61429842,88.294,88.21,6.06394135]
[1773578773668,10.195,88.258,88.21,6.06394135]
[1773578779375,16.96256344,88.294,88.21,6.06394135]
[1773578779376,10.194,88.266,88.21,6.06394135]
[1773578780568,10.194,88.266,88.214,6.01957665]
[1773578781075,10.194,88.274,88.214,6.01957665]
[1773578782574,10.194,88.274,88.223,6.03415617]
[1773578785182,10.194,88.267,88.223,6.03415617]
[1773578798994,10.193,88.276,88.223,6.03415617]
[1773578799595,10.193,88.276,88.197,21.0206467]
[1773578799596,10.193,88.276,88.225,6.05019963]
[1773578802597,10.194,88.266,88.225,6.05019963]
[1773578805401,10.193,88.275,88.225,6.05019963]
[1773578807697,10.195,88.265,88.225,6.05019963]
[1773578812104,10.195,88.265,88.213,10.201]
[1773578812797,10.195,88.265,88.213,16.25348079]
[1773578812997,10.195,88.265,88.214,6.05122672]
[1773578815904,10.195,88.258,88.214,6.05122672]
[1773578824409,10.195,88.266,88.217,10.2]
[1773578824612,10.195,88.266,88.218,6.05296494]
[1773578825217,10.194,88.274,88.222,6.05275826]
[1773578826516,10.194,88.274,88.224,10.199]
[1773578826715,10.194,88.274,88.225,6.05174881]
[1773578828820,10.194,88.267,88.225,6.05174881]
[1773578836121,10.195,88.26,88.225,6.05174881]
[1773578853526,35.66,88.277,88.225,6.05174881]
[1773578853527,10.194,88.268,88.225,6.05174881]
[1773578866830,10.194,88.268,88.22,10.2]
[1773578866831,10.194,88.268,88.227,6.06251018]
[1773578872351,35.66,88.277,88.23,6.06247571]
[1773578872549,35.68,88.297,88.23,6.06247571]
[1773578872749,8.60565716,88.296,88.23,6.06247571]
[1773578873052,8.60565716,88.295,88.23,6.06247571]
[1773578873251,8.60565716,88.294,88.23,6.06247571]
[1773578873447,8.60565716,88.293,88.23,6.06247571]
[1773578873646,10.192,88.286,88.234,6.06237043]
[1773578873852,8.60565716,88.285,88.234,6.06237043]
[1773578874051,35.68,88.297,88.234,6.06237043]
[1773578874251,8.60308459,88.296,88.234,6.06237043]
[1773578874553,8.60308459,88.295,88.234,6.06237043]
[1773578874852,8.60308459,88.294,88.234,6.06237043]
[1773578875043,8.60308459,88.293,88.234,6.06237043]
[1773578875244,8.60308459,88.292,88.234,6.06237043]
[1773578875452,8.60308459,88.291,88.234,6.06237043]
[1773578875646,10.192,88.284,88.234,6.06237043]
[1773578879357,18.78915758,88.293,88.241,6.04074616]
[1773578879558,8.59815758,88.296,88.241,6.04074616]
[1773578879759,35.68,88.297,88.241,6.04074616]
[1773578879960,8.59823057,88.296,88.241,6.04074616]
[1773578880261,8.59812648,88.296,88.241,6.04074616]
[1773578880660,10.192,88.288,88.241,6.04074616]
[1773578887160,10.192,88.288,88.214,35.68]
[1773578887161,45.871,88.297,88.243,6.07277951]
[1773578887363,35.68,88.297,88.243,6.07277951]
[1773578887763,35.68,88.297,88.256,6.07277951]
[1773578888759,35.68,88.297,88.258,6.06917316]
[1773578891665,10.191,88.295,88.258,6.06917316]
[1773578895460,35.68,88.297,88.259,6.10521486]
[1773578896767,35.68,88.297,88.261,6.10580915]
[1773578898170,35.68,88.297,88.263,6.12850012]
[1773578898568,35.68,88.297,88.238,6.12850012]
[1773578899570,10.191,88.295,88.247,6.12780537]
[1773578900666,10.191,88.295,88.25,6.14521084]
[1773578901770,10.191,88.295,88.252,6.12198801]
[1773578906771,35.68,88.297,88.252,6.12198801]
[1773578911476,35.68,88.297,88.254,6.12656277]
[1773578911877,10.191,88.295,88.237,6.12656277]
[1773578912268,35.68,88.297,88.245,6.12634125]
[1773578913573,35.68,88.297,88.25,6.1287901]
[1773578913778,10.191,88.296,88.25,6.1287901]
[1773578914674,35.68,88.297,88.25,6.1287901]
[1773578921783,35.68,88.297,88.22,5.0]
[1773578921784,10.191,88.295,88.241,10.197]
[1773578922885,10.191,88.295,88.241,16.31267708]
[1773578924876,10.192,88.287,88.233,10.198]
[1773578926088,10.192,88.287,88.234,6.13624699]
[1773578928089,10.193,88.276,88.224,6.13115501]
[1773578928984,10.194,88.269,88.224,6.13115501]
[1773578929187,8.57597141,88.29,88.214,6.14414199]
[1773578929389,8.57597141,88.289,88.214,6.14414199]
[1773578929589,8.57597141,88.288,88.214,6.14414199]
[1773578929789,10.194,88.272,88.214,6.14414199]
[1773578930790,10.195,88.265,88.214,6.14414199]
[1773578938195,16.85263278,88.296,88.214,6.14414199]
[1773578938397,8.57597141,88.296,88.214,6.14414199]
[1773578938700,35.68,88.297,88.214,6.14414199]
[1773578939598,10.195,88.26,88.214,6.14414199]
[1773578940504,35.68,88.259,88.191,6.154335]
[1773578940703,35.68,88.258,88.191,6.154335]
[1773578940896,35.68,88.257,88.191,6.154335]
[1773578941095,35.68,88.256,88.191,6.154335]
[1773578941297,35.68,88.255,88.191,6.154335]
[1773578941503,10.5574189,88.286,88.191,6.154335]
[1773578941504,10.198,88.235,88.191,6.154335]
[1773578942207,10.199,88.228,88.191,6.154335]
[1773578942398,10.199,88.228,88.178,6.16159846]
[1773578948112,10.198,88.238,88.181,6.15741315]
[1773578948508,35.68,88.244,88.181,6.15741315]
[1773578949712,10.199,88.229,88.181,6.15741315]
[1773578950316,35.68,88.244,88.164,6.16109015]
[1773578951513,10.2,88.22,88.166,6.16059255]
[1773578952808,10.2,88.22,88.167,10.206]
[1773578953115,10.2,88.22,88.168,6.15168649]
[1773578953507,35.68,88.244,88.168,6.15168649]
[1773578953712,10.201,88.211,88.168,6.15168649]
[1773578964421,35.68,88.244,88.174,6.15069765]
[1773578964422,10.199,88.223,88.174,6.15069765]
[1773578967430,10.2,88.215,88.174,6.15069765]
[1773578971434,10.199,88.223,88.175,6.14127762]
[1773578972232,10.198,88.232,88.18,6.14282662]
[1773578973531,10.198,88.232,88.183,6.14324983]
[1773578979140,10.199,88.224,88.183,6.14324983]
[1773578983449,10.198,88.232,88.183,6.14324983]
[1773578984744,10.198,88.232,88.185,6.13322028]
[1773578986537,10.198,88.232,88.188,6.1342192]
[1773578989853,10.197,88.24,88.19,6.13632804]
[1773578990552,10.197,88.24,88.193,6.13643823]
[1773578991355,10.198,88.233,88.193,6.13643823]
[1773578993953,10.199,88.225,88.184,6.10961951]
[1773578994153,35.68,88.244,88.184,6.10961951]
[1773578995651,10.198,88.233,88.189,6.15338973]
[1773579001064,10.198,88.233,88.191,6.15668212]
[1773579002566,10.198,88.233,88.193,6.15913189]
[1773579003463,10.197,88.24,88.193,6.15913189]
[1773579004155,35.68,88.244,88.195,6.16751485]
[1773579005064,10.197,88.248,88.202,6.16751485]
[1773579005265,10.196,88.256,88.202,6.16751485]
[1773579006366,10.196,88.256,88.211,6.16723051]
[1773579015479,10.196,88.256,88.213,6.12861164]
[1773579015684,35.68,88.266,88.213,6.12861164]
[1773579016681,35.68,88.266,88.225,6.12814449]
[1773579017579,10.192,88.283,88.235,6.04286505]
[1773579017783,20.374,88.333,88.235,6.04286505]
[1773579017784,35.68,88.292,88.235,6.04286505]
[1773579018684,10.192,88.291,88.241,6.04396732]
[1773579019786,10.192,88.291,88.245,5.90212797]
[1773579021591,35.68,88.292,88.223,5.912136]
[1773579021787,35.68,88.292,88.202,5.912136]
[1773579023589,10.195,88.265,88.212,5.92357485]
[1773579024591,10.195,88.265,88.214,5.92251457]
[1773579025590,10.195,88.265,88.215,16.12033834]
[1773579025988,10.195,88.265,88.216,5.92033834]
[1773579030592,10.196,88.257,88.216,5.92033834]
[1773579052603,10.195,88.264,88.216,5.92033834]
[1773579056404,10.196,88.256,88.205,5.87995052]
[1773579062909,10.195,88.265,88.207,5.9947519]
[1773579064604,10.195,88.265,88.21,5.98335841]
[1773579065205,10.195,88.261,88.21,5.98335841]
[1773579068614,10.196,88.254,88.21,5.98335841]
[1773579070816,10.197,88.247,88.21,5.98335841]
[1773579094741,8.61352512,88.264,88.212,6.06724526]
[1773579095040,10.5574189,88.287,88.212,6.06724526]
[1773579095344,8.61659118,88.286,88.212,6.06724526]
[1773579095640,8.61659118,88.285,88.212,6.06724526]
[1773579095844,10.5574189,88.288,88.212,6.06724526]
[1773579095845,8.61659118,88.284,88.212,6.06724526]
[1773579096038,8.61659118,88.283,88.212,6.06724526]
[1773579096344,8.61659118,88.282,88.212,6.06724526]
[1773579096535,10.194,88.274,88.227,6.070195]
[1773579096735,8.61659118,88.273,88.227,6.070195]
[1773579096936,8.61659118,88.272,88.227,6.070195]
[1773579097143,10.194,88.274,88.227,6.070195]
[1773579097447,8.61392357,88.273,88.227,6.070195]
[1773579097640,10.194,88.274,88.227,6.070195]
[1773579097945,8.61197953,88.273,88.227,6.070195]
[1773579098245,10.194,88.274,88.227,6.070195]
[1773579098445,8.61053659,88.273,88.227,6.070195]
[1773579098645,10.194,88.274,88.227,6.070195]
[1773579098845,8.61053659,88.273,88.227,6.070195]
[1773579099040,10.194,88.274,88.227,6.070195]
[1773579108650,10.194,88.274,88.229,6.08895863]
[1773579109040,10.193,88.283,88.229,6.08895863]
[1773579109249,8.60798426,88.282,88.229,6.08895863]
[1773579109453,8.60798426,88.281,88.229,6.08895863]
[1773579109646,10.193,88.28,88.231,6.08462529]
[1773579110649,10.193,88.28,88.233,6.072945]
[1773579116653,10.194,88.272,88.224,16.27645096]
[1773579117043,10.194,88.272,88.225,6.07745096]
[1773579117846,10.194,88.272,88.228,6.07740685]
[1773579118048,10.193,88.28,88.228,6.07740685]
[1773579119654,10.193,88.28,88.23,6.07191171]
[1773579120656,10.193,88.28,88.233,6.08186926]
[1773579123154,10.194,88.272,88.233,6.08186926]
[1773579130867,10.193,88.28,88.233,6.08186926]
[1773579132267,10.194,88.269,88.233,6.08186926]
[1773579133867,10.194,88.269,88.22,16.26810777]
[1773579134167,10.194,88.269,88.226,10.199]
[1773579134367,10.194,88.269,88.226,16.26734987]
[1773579134667,10.194,88.269,88.227,6.06834987]
[1773579135668,10.193,88.277,88.227,6.06834987]
[1773579137366,8.64251846,88.276,88.227,6.06834987]
[1773579137666,10.193,88.277,88.23,10.199]
[1773579137870,8.64252052,88.276,88.231,6.06800722]
[1773579138070,10.193,88.277,88.231,6.06800722]
[1773579138271,8.64252052,88.276,88.231,6.06800722]
[1773579138473,8.64252052,88.275,88.231,6.06800722]
[1773579138668,10.193,88.277,88.231,6.06800722]
[1773579138969,8.64487298,88.276,88.231,6.06800722]
[1773579139169,8.64487298,88.275,88.231,6.06800722]
[1773579139469,8.64487298,88.274,88.231,6.06800722]
[1773579139664,8.64487298,88.273,88.231,6.06800722]
[1773579139972,10.193,88.277,88.231,6.06800722]
[1773579140174,10.194,88.274,88.231,6.06800722]
[1773579140374,8.6483458,88.273,88.231,6.06800722]
[1773579140574,8.26862634,88.29,88.222,10.199]
[1773579140774,16.91760989,88.289,88.222,10.199]
[1773579141079,16.91760989,88.288,88.222,16.27449372]
[1773579141377,16.91760989,88.287,88.223,6.07847091]
[1773579141572,10.5574189,88.285,88.223,6.07847091]
[1773579141770,16.91760989,88.284,88.223,6.07847091]
[1773579141968,16.91760989,88.283,88.223,6.07847091]
[1773579142178,16.91760989,88.282,88.223,6.07847091]
[1773579142477,16.91760989,88.281,88.223,6.07847091]
[1773579142676,10.195,88.259,88.223,6.07847091]
[1773579143477,10.195,88.261,88.223,6.07847091]
[1773579143978,16.91760989,88.274,88.223,6.07847091]
[1773579144276,8.64898355,88.273,88.223,6.07847091]
[1773579144478,8.64898355,88.272,88.223,6.07847091]
[1773579144678,8.64898355,88.271,88.223,6.07847091]
[1773579144877,10.5574189,88.286,88.223,6.07847091]
[1773579144878,8.64898355,88.27,88.223,6.07847091]
[1773579145078,8.64898355,88.269,88.223,6.07847091]
[1773579145280,8.64898355,88.268,88.223,6.07847091]
[1773579145576,10.195,88.259,88.223,6.07847091]
[1773579146980,10.194,88.267,88.223,6.07847091]
[1773579147179,8.64561409,88.266,88.223,6.07847091]
[1773579147383,8.26862634,88.282,88.223,6.07847091]
[1773579147580,16.9131626,88.281,88.223,6.07847091]
[1773579147780,16.9131626,88.28,88.223,6.07847091]
[1773579147974,16.9131626,88.279,88.223,6.07847091]
[1773579148180,16.9131626,88.278,88.223,6.07847091]
[1773579148481,16.9131626,88.277,88.223,6.07847091]
[1773579148783,10.195,88.265,88.223,6.07847091]
[1773579161593,8.64477689,88.264,88.21,6.04127099]
[1773579161896,8.64477689,88.263,88.21,6.04127099]
[1773579162196,8.64477689,88.262,88.21,6.04127099]
[1773579162395,8.64477689,88.261,88.21,6.04127099]
[1773579162593,10.197,88.248,88.21,6.04127099]
[1773579172805,10.198,88.239,88.192,6.0804636]
[1773579172996,8.64235161,88.238,88.176,6.0804636]
[1773579173195,35.68,88.249,88.176,6.0804636]
[1773579173396,8.64235161,88.248,88.176,6.0804636]
[1773579173603,8.64235161,88.247,88.176,6.0804636]
[1773579173798,8.64235161,88.248,88.176,6.0804636]
[1773579174001,35.68,88.249,88.176,6.0804636]
[1773579174207,8.64235161,88.264,88.178,5.9958]
[1773579174408,8.64235161,88.263,88.178,5.9958]
[1773579174610,8.64235161,88.262,88.178,5.9958]
[1773579174908,8.64235161,88.261,88.178,5.9958]
[1773579175203,8.64235161,88.26,88.178,5.9958]
[1773579175409,8.64235161,88.259,88.178,5.9958]
[1773579175709,10.196,88.256,88.182,6.02388717]
[1773579176503,10.196,88.256,88.188,10.203]
[1773579176808,10.196,88.256,88.189,6.03177169]
[1773579178107,10.196,88.256,88.191,6.02306165]
[1773579179811,10.196,88.256,88.193,5.98391031]
[1773579182310,10.196,88.256,88.197,5.98535686]
[1773579182709,18.83735161,88.265,88.197,5.98535686]
[1773579182904,8.83574378,88.264,88.208,5.98535686]
[1773579183110,35.68,88.299,88.208,5.98535686]
[1773579183313,17.46565293,88.298,88.208,5.98535686]
[1773579183506,17.46565293,88.297,88.208,5.98535686]
[1773579183705,17.46565293,88.297,88.202,21.0206467]
[1773579183706,10.192,88.285,88.223,5.990396]
[1773579183906,8.8376298,88.284,88.223,5.990396]
[1773579184108,8.8376298,88.283,88.223,5.990396]
[1773579184303,8.8376298,88.282,88.223,5.990396]
[1773579184504,8.8376298,88.281,88.227,10.199]
[1773579184710,8.8376298,88.28,88.228,5.98003313]
[1773579184907,8.8376298,88.279,88.228,5.98003313]
[1773579185108,8.8376298,88.278,88.228,5.98003313]
[1773579185304,8.8376298,88.277,88.228,5.98003313]
[1773579185508,8.8376298,88.284,88.228,5.98003313]
[1773579185708,8.8376298,88.283,88.228,5.98003313]
[1773579185911,8.8376298,88.282,88.228,5.98003313]
[1773579186107,8.8376298,88.281,88.228,5.98003313]
[1773579186410,8.8376298,88.28,88.228,5.98003313]
[1773579186610,8.8376298,88.279,88.228,5.98003313]
[1773579186811,8.8376298,88.278,88.228,5.98003313]
[1773579187011,8.8376298,88.277,88.228,5.98003313]
[1773579187215,10.193,88.28,88.228,5.98003313]
[1773579187412,8.8376298,88.279,88.228,5.98003313]
[1773579187613,8.8376298,88.278,88.228,5.98003313]
[1773579187812,8.8376298,88.277,88.228,5.98003313]
[1773579188114,17.46565293,88.297,88.228,5.98003313]
[1773579188315,17.46565293,88.296,88.228,5.98003313]
[1773579188505,10.193,88.278,88.228,5.98003313]
[1773579191013,8.8376298,88.284,88.231,5.96545129]
[1773579191219,10.192,88.287,88.231,5.96545129]
[1773579192718,10.192,88.287,88.236,5.94696117]
[1773579200818,10.193,88.28,88.236,5.94696117]
[1773579202322,10.194,88.272,88.236,5.94696117]
[1773579203223,10.193,88.282,88.236,5.94696117]
[1773579203423,8.62802313,88.295,88.236,5.94696117]
[1773579203722,8.62802313,88.297,88.236,5.94696117]
[1773579203923,8.62802313,88.296,88.236,5.94696117]
[1773579204124,8.62802313,88.295,88.236,5.94696117]
[1773579204322,8.62802313,88.297,88.236,5.94696117]
[1773579204525,10.193,88.275,88.236,5.94696117]
[1773579204825,8.62802313,88.297,88.236,5.94696117]
[1773579205025,8.62802313,88.296,88.236,5.94696117]
[1773579205216,8.62802313,88.298,88.236,5.94696117]
[1773579205525,10.193,88.283,88.236,5.94696117]
[1773579207123,10.193,88.276,88.236,5.94696117]
[1773579223345,10.194,88.268,88.227,5.87315216]
[1773579229150,10.193,88.276,88.227,5.87315216]
[1773579229349,8.87840396,88.275,88.227,5.87315216]
[1773579229549,8.87840396,88.274,88.227,5.87315216]
[1773579229849,8.87840396,88.273,88.227,5.87315216]
[1773579230047,10.193,88.276,88.227,5.87315216]
[1773579230245,8.69324804,88.275,88.229,5.87481481]
[1773579230449,8.69324804,88.274,88.229,5.87481481]
[1773579230650,8.69324804,88.273,88.229,5.87481481]
[1773579230949,10.193,88.276,88.229,5.87481481]
[1773579231150,8.6932439,88.275,88.229,5.87481481]
[1773579231450,8.6932439,88.274,88.21,5.87812842]
[1773579231744,8.6932439,88.273,88.21,5.87812842]
[1773579231949,8.6932439,88.272,88.21,5.87812842]
[1773579232249,8.6932439,88.271,88.21,5.87812842]
[1773579232450,8.6932439,88.27,88.21,5.87812842]
[1773579232751,10.196,88.254,88.21,5.87812842]
[1773579233650,18.8882439,88.265,88.21,5.87812842]
[1773579233852,8.6932439,88.264,88.21,5.87812842]
[1773579234151,8.6932439,88.263,88.21,5.87812842]
[1773579234351,8.6932439,88.262,88.21,5.87812842]
[1773579234549,8.6932439,88.261,88.21,5.87812842]
[1773579234756,8.6932439,88.26,88.21,5.87812842]
[1773579235052,8.6932439,88.259,88.21,5.87812842]
[1773579235351,8.6932439,88.264,88.21,5.87812842]
[1773579235551,8.6932439,88.263,88.21,5.87812842]
[1773579235750,8.6932439,88.262,88.21,5.87812842]
[1773579235950,8.6932439,88.261,88.21,5.87812842]
[1773579236151,10.195,88.265,88.21,5.87812842]
[1773579236352,8.6739932,88.264,88.21,5.87812842]
[1773579236654,8.6739932,88.263,88.21,5.87812842]
[1773579236849,8.6739932,88.264,88.21,5.87812842]
[1773579237050,8.6739932,88.263,88.21,5.87812842]
[1773579237251,10.195,88.265,88.21,5.87812842]
[1773579239846,10.195,88.262,88.21,5.87812842]
[1773579240648,10.196,88.254,88.201,5.83901007]
[1773579242248,35.68,88.294,88.167,35.68]
[1773579242249,8.6739932,88.278,88.207,5.84941914]
[1773579242448,8.6739932,88.287,88.207,5.84941914]
[1773579242653,8.6739932,88.286,88.207,5.84941914]
[1773579242845,8.6739932,88.285,88.207,5.84941914]
[1773579243046,8.6739932,88.284,88.207,5.84941914]
[1773579243246,35.68,88.294,88.207,5.84941914]
[1773579243247,8.6739932,88.283,88.207,5.84941914]
[1773579243452,8.6739932,88.293,88.207,5.84941914]
[1773579243654,10.194,88.272,88.215,5.84916528]
[1773579244357,10.194,88.272,88.217,5.83989222]
[1773579245352,10.194,88.272,88.221,5.82956132]
[1773579246654,10.194,88.272,88.227,5.82083729]
[1773579247051,8.6739932,88.287,88.229,5.82083729]
[1773579247248,8.6739932,88.286,88.229,5.82083729]
[1773579247449,8.6739932,88.285,88.229,5.82083729]
[1773579247653,8.6739932,88.284,88.229,5.82083729]
[1773579247853,8.6739932,88.283,88.229,5.82083729]
[1773579248056,10.194,88.273,88.229,5.82083729]
[1773579249156,8.6739932,88.289,88.229,5.82083729]
[1773579249157,8.6739932,88.288,88.229,5.82083729]
[1773579249358,8.6739932,88.287,88.229,5.82083729]
[1773579249558,8.6739932,88.286,88.229,5.82083729]
[1773579249759,8.6739932,88.285,88.229,5.82083729]
[1773579249959,8.6739932,88.284,88.229,5.82083729]
[1773579250161,8.6739932,88.283,88.229,5.82083729]
[1773579250360,8.6739932,88.282,88.229,5.82083729]
[1773579250561,10.193,88.276,88.229,5.82083729]
[1773579261466,10.193,88.276,88.231,5.85110427]
[1773579262468,10.193,88.276,88.233,5.85153161]
[1773579265266,10.193,88.276,88.236,5.82096481]
[1773579267861,8.6739932,88.287,88.236,5.82096481]
[1773579268066,8.6739932,88.286,88.236,5.82096481]
[1773579268268,8.6739932,88.285,88.236,5.82096481]
[1773579268566,8.6739932,88.284,88.236,5.82096481]
[1773579268866,8.6739932,88.283,88.236,5.82096481]
[1773579269064,8.6739932,88.282,88.236,5.82096481]
[1773579269267,8.6739932,88.293,88.236,5.82096481]
[1773579269466,35.68,88.294,88.236,5.82096481]
[1773579269467,8.6739932,88.292,88.236,5.82096481]
[1773579269662,10.193,88.275,88.236,5.82096481]
[1773579276069,10.192,88.283,88.239,5.82282957]
[1773579277575,10.192,88.283,88.241,5.83983759]
[1773579281876,10.192,88.283,88.243,5.84774781]
[1773579299484,10.192,88.291,88.243,5.84774781]
[1773579299682,8.6739932,88.29,88.243,5.84774781]
[1773579300192,8.6739932,88.289,88.243,5.84774781]
[1773579300393,8.6739932,88.29,88.243,5.84774781]
[1773579300589,8.6739932,88.289,88.243,5.84774781]
[1773579300784,8.6739932,88.29,88.243,5.84774781]
[1773579300991,8.6739932,88.289,88.243,5.84774781]
[1773579301192,8.6739932,88.288,88.243,5.84774781]
[1773579301487,8.6739932,88.29,88.243,5.84774781]
[1773579301693,8.6739932,88.289,88.243,5.84774781]
[1773579301893,8.6739932,88.288,88.243,5.84774781]
[1773579302093,8.6739932,88.29,88.243,5.84774781]
[1773579302296,10.192,88.291,88.243,5.84774781]
[1773579302297,8.6739932,88.289,88.243,5.84774781]
[1773579302590,35.68,88.294,88.22,21.14626616]
[1773579302591,8.6739932,88.288,88.246,5.83353503]
[1773579302797,35.68,88.294,88.246,5.83353503]
[1773579303296,35.68,88.294,88.256,5.8182083]
[1773579306096,3.96537999,88.312,88.262,5.82923507]
[1773579306394,3.96537999,88.311,88.262,5.82923507]
[1773579306994,3.96537999,88.311,88.266,10.194]
[1773579308293,3.96537999,88.311,88.267,1.71029256]
[1773579309301,3.96537999,88.311,88.225,20.399]
[1773579309302,3.96537999,88.311,88.268,11.950139]
[1773579309498,3.96537999,88.311,88.269,1.756139]
[1773579310498,3.96537999,88.311,88.273,1.79914029]
[1773579312603,3.96537999,88.311,88.274,10.193]
[1773579314309,3.96537999,88.311,88.276,10.193]
[1773579318803,3.96537999,88.311,88.276,12.01203505]
[1773579319209,3.96537999,88.311,88.277,1.81903505]
[1773579323113,3.96537999,88.311,88.278,10.193]
[1773579323314,35.68,88.313,88.279,1.81078604]
[1773579324013,35.68,88.313,88.282,1.81078604]
[1773579325608,35.68,88.313,88.285,10.192]
[1773579326313,39.54113697,88.313,88.285,10.192]
[1773579326911,3.86113697,88.312,88.285,10.192]
[1773579350944,35.68,88.313,88.285,11.97380375]
[1773579351737,35.68,88.313,88.289,10.192]
[1773579361147,3.70699965,88.321,88.297,10.191]
[1773579361749,3.70699965,88.321,88.271,1.83594668]
[1773579363747,3.70699965,88.321,88.285,10.192]
[1773579366852,3.70699965,88.321,88.262,3.72911248]
[1773579367149,3.8101055,88.319,88.262,3.72911248]
[1773579367345,3.8101055,88.317,88.262,3.72911248]
[1773579367551,3.8101055,88.315,88.262,3.72911248]
[1773579368654,3.8101055,88.315,88.275,10.193]
[1773579369554,3.8101055,88.315,88.267,3.72911248]
[1773579370654,3.8101055,88.315,88.271,13.92311248]
[1773579371054,3.8101055,88.315,88.274,10.193]